Cogmind - Beta 17 @@@ ROGUE MODE // 2026.06.29 @ 19:09:30 Player: Conwew Result: Destroyed by RM-H94(R) with Subdweller Beam Cannon Performance ------------- Evolutions (0) 0 Regions Visited (2) 400 Robots Destroyed (26) 130 Value Destroyed (543) 543 Prototype IDs (1) 20 Alien Tech Used (0) 0 Bonus (5350) 5350 TOTAL SCORE: 6443 Bonus ------- Prayed to X0-1V1 5000 Major X0-1V1 Interference 350 Cogmind --------- Core Integrity 0/130 Matter 140/150 Energy 100/100 System Corruption 0% Temperature Cool (9) Movement Walking (120) Location -10/Subcaves Parts ------- > --- POWER (1) -------- (None) > --- PROPULSION (3) --- Aluminum Leg Aluminum Leg > --- UTILITY (2) ------ Improved Heat Sink X0-1V1's Piety Tracker > --- WEAPON (2) ------- (None) > --- INVENTORY (5) ---- Light Nuclear Core Dirty Datajack (20) Peak State ------------ > --- POWER ------------ Ion Engine > --- PROPULSION ------- Aluminum Leg Aluminum Leg > --- UTILITY ---------- Improved Heat Sink X0-1V1's Piety Tracker > --- WEAPON ----------- Light Assault Rifle Subdweller Machine Gun Flamer > --- INVENTORY -------- Light Nuclear Core Aluminum Leg Aluminum Leg Dirty Datajack [Rating: 25] Favorites ----------- Power Ion Engine Engine Ion Engine Power Core Light Nuclear Core Propulsion Aluminum Leg Leg Aluminum Leg Utility Hacking Suite Device X0-1V1's Piety Tracker Hackware Hacking Suite Protection Propulsion Shielding Weapon Light Assault Rifle Ballistic Gun Light Assault Rifle Special Weapon Flamer Build | -11 -10 -10 ------- Run | Yrd Mat Sub Slots Evolved . | . . . Power . | . . . Propulsion . | . . . Utility . | . . . Weapon . | . . . Parts Attached 20 | 5 9 6 Power 4 | 1 3 . Engine 3 | 1 2 . Core 1 | . 1 . Reactor . | . . . Propulsion 6 | 2 2 2 Treads . | . . . Leg 6 | 2 2 2 Wheel . | . . . Hover . | . . . Flight . | . . . Utility 5 | . 4 1 Device 3 | . 2 1 Storage . | . . . Processor . | . . . Hackware 1 | . 1 . Protection 1 | . 1 . Artifact . | . . . Weapon 5 | 2 . 3 Energy Gun . | . . . Energy Cannon . | . . . Ballistic Gun 4 | 2 . 2 Ballistic Cannon . | . . . Launcher . | . . . Special Weapon 1 | . . 1 Impact Weapon . | . . . Slashing Weapon . | . . . Piercing Weapon . | . . . Special Melee Weapon . | . . . Unidentified Prototypes 1 | . 1 . Parts Lost 10 | . 1 9 Power 2 | . 1 1 Propulsion 2 | . . 2 Utility 2 | . . 2 Weapon 4 | . . 4 Highest Loss Streak 3 | . 1 3 To Critical Strikes . | . . . Average Backups 2 | . 2 3 Power . | . . 1 Propulsion 1 | . 1 1 Utility . | . . . Weapon . | . . . Tool/Special . | . . . Unused Backups 2 | . 1 1 Power . | . . . Propulsion . | . . . Utility . | . . . Weapon 1 | . 1 . Tool/Special 1 | . . 1 Average Slot Usage (%) 85 | . 86 84 Engine 11 | . 12 10 Leg 26 | . 28 25 Device 10 | . 5 16 Hackware 5 | . 4 7 Protection 3 | . 6 . Ballistic Gun 24 | . 28 20 Special Weapon 1 | . . 3 Peak Build Rating 25 | 5 21 25 Average Rating 12 | 4 7 20 On Entrance 8 | . 5 21 Avg Prop Armor Cover (%) . | . . . Naked Turns . | . . . Heaviest Build 14 | 5 9 14 Greatest Support 30 | 20 20 30 Greatest Overweight (x) . | . . . Average Overweight (x) . | . . . Largest Inventory Capacity 5 | 5 5 5 Average Capacity 5 | 5 5 5 Most Carried 5 | . 5 5 Average Carried 2 | . 2 3 Final Capacity 5 | 5 5 5 Final Carried 4 | . 4 2 Class Distribution -------------------- 57% | Mutant 31% | Scavenger-Mutant 9% | Scavenger-Gunner Dominant Class ---------------- Mutant | -10/Materials Mutant | -10/Subcaves Resources | -11 -10 -10 ----------- Run | Yrd Mat Sub Matter Collected 503 | 201 206 96 Remotely . | . . . Salvage Created 735 | . 574 161 Parts 50 | . 36 14 Haulers Intercepted 1 | . 1 . Recyclers Shooed . | . . . Parts Field Recycled . | . . . Retrieved Matter . | . . . Parts Self-Destructed 20 | . . 20 Prevented . | . . . Parts Restored . | . . . Kills | -11 -10 -10 ------- Run | Yrd Mat Sub Combat Hostiles Destroyed 17 | . 10 7 Guns 16 | . 10 6 Cannons 1 | . . 1 Classes Destroyed 10 | . 8 2 Worker 3 | . 3 . Builder 1 | . 1 . Hauler 1 | . 1 . Recycler 1 | . 1 . Operator 2 | . 2 . Watcher 1 | . 1 . Swarmer 7 | . 3 4 Grunt 7 | . 7 . Sentry 1 | . . 1 Subdweller 2 | . . 2 Best Kill Streak 5 | . 5 4 Combat Bots Only 4 | . 3 4 Max Kills in Single Turn 3 | . 3 1 Gunslinging . | . . . Exploded . | . . . Melee . | . . . Uniques/NPCs Destroyed . | . . . Combat | -11 -10 -10 -------- Run | Yrd Mat Sub Hostile Shots Fired 121 | . 50 71 Missed 40 | . 10 30 Hits 81 | . 40 41 Projectile 81 | . 40 41 Damage Taken 1246 | . 529 717 Core 266 | . 86 180 Absorbed by Shields . | . . . Redirected to Shielding 44 | . 44 . Core Remaining (%) 100 | 100 . . Volleys Fired 75 | . 47 28 Largest 3 | . 2 3 Hottest 120 | . 40 120 Shots Fired 146 | . 94 52 Gun 139 | . 94 45 Cannon . | . . . Launcher . | . . . Special 7 | . . 7 Kinetic 139 | . 94 45 Thermal 7 | . . 7 Explosive . | . . . Electromagnetic . | . . . Robot Hit Streak 17 | . 8 17 Robot Miss Streak 5 | . 3 5 Penetration Max . | . . . Secondary Targets 2 | . . 2 Max Gunslinging Chain 1 | . . 1 Shots Hit Robots 99 | . 65 34 Core Hits 52 | . 38 14 Critical Kills 1 | . 1 . Critical Parts Destroyed . | . . . Critical Strikes 1 | . 1 . Destroy 1 | . 1 . Melee Attacks . | . . . Impact . | . . . Slashing . | . . . Piercing . | . . . Sneak Attacks . | . . . Combat Hostiles . | . . . Follow-up Attacks . | . . . Damage Inflicted 1176 | . 784 392 Guns 847 | . 532 315 Cannons . | . . . Explosions 252 | . 252 . Melee . | . . . Ramming . | . . . Kinetic 847 | . 532 315 Thermal 77 | . . 77 Explosive 252 | . 252 . Electromagnetic . | . . . Impact . | . . . Slashing . | . . . Piercing . | . . . Highest Corruption . | . . . Average Corruption . | . . . Corruption Purged . | . . . Corruption Blocked . | . . . Overload Shots . | . . . Overflow Damage 9 | . 9 . Projectiles . | . . . Explosions 9 | . 9 . Melee . | . . . Knockbacks . | . . . Impact . | . . . Kinetic . | . . . Secondary . | . . . Self-Inflicted Damage 45 | . 45 . Shots 1 | . 1 . Rammed . | . . . Targets Rammed . | . . . Kicked . | . . . Crushed . | . . . Highest Temperature 21 | . 21 1 Average Temperature 9 | . 9 1 Received Heat Transfer 351 | . 216 135 Siege Activations . | . . . Martial Activations . | . . . Shielding Activations . | . . . Robots Disrupted . | . . . Combat Hostiles . | . . . Robots Corrupted . | . . . Combat Hostiles . | . . . Parts Fried . | . . . Impact Corruptions . | . . . Robots Melted . | . . . Combat Hostiles . | . . . Parts Melted 1 | . . 1 Heat Transferred 560 | . . 560 Parts Sabotaged . | . . . Parts Stolen . | . . . Parts Stripped . | . . . Power Chain Reactions . | . . . Alert | -11 -10 -10 ------- Run | Yrd Mat Sub Maximum Alert Level . | . . . Low Security (%) 100 | 100 100 . Level 1 . | . . . Level 2 . | . . . Level 3 . | . . . Level 4 . | . . . Level 5 . | . . . High Security . | . . . Max Security . | . . . Peak Influence 126 | . 126 . Initial . | . . . Average 56 | . 64 . Influence Increases 488 | . 388 100 Destroy 0b10 Robot/C 300 | . 200 100 Destroy 0b10 Robot/NC 45 | . 45 . Destroy Leader 54 | . 54 . Successful Hack 5 | . 5 . Disable Machine 30 | . 30 . Destroy Structure 54 | . 54 . Influence Decreases 488 | . 322 166 Entered New Map 33 | . . 33 Time Decay 435 | . 312 123 Lost Part 20 | . 10 10 Squads Dispatched 2 | . 2 . Investigation . | . . . Extermination . | . . . Reinforcement 2 | . 2 . Assault . | . . . Garrison . | . . . Intercept . | . . . Searches Triggered . | . . . Construction Impeded . | . . . Haulers Reinforced . | . . . Active Scanning Responses . | . . . Cargo Convoy Interrupts . | . . . Stealth | -11 -10 -10 --------- Run | Yrd Mat Sub Distress Signals 2 | . 2 . Communications Jammed . | . . . Distress Signals . | . . . Times Spotted 31 | . 22 9 Peak Tracking Total 4 | . 4 4 Tactical Retreats . | . . . Traps | -11 -10 -10 ------- Run | Yrd Mat Sub Traps Triggered 3 | . 1 2 Indirectly . | . . . Trap Hack Attempts . | . . . Triggered . | . . . Disarmed . | . . . Reprogrammed . | . . . Reused . | . . . Traps Extracted . | . . . Installed . | . . . Triggered . | . . . Machines | -11 -10 -10 ---------- Run | Yrd Mat Sub Machines Disabled 2 | . 2 . Max in Single Turn 1 | . 1 . Machines Repaired . | . . . Machines Dismantled . | . . . Machines Sabotaged . | . . . Overloaded Fab Kills . | . . . Hacking | -11 -10 -10 --------- Run | Yrd Mat Sub Machines Accessed 3 | . 3 . Terminals 3 | . 3 . Fabricators . | . . . Repair Stations . | . . . Recycling Units . | . . . Scanalyzers . | . . . Garrison Access . | . . . Total Hacks 6 | . 6 . Successful 2 | . 2 . Failed 4 | . 4 . Catastrophic . | . . . Database Lockouts . | . . . Manual 15 | . 15 . Terminals 6 | . 6 . Fabricators . | . . . Repair Stations . | . . . Recycling Units . | . . . Scanalyzers . | . . . Garrison Access . | . . . Terminal Hacks . | . . . Fabricator Hacks . | . . . Repair Station Hacks . | . . . Recycling Unit Hacks . | . . . Scanalyzer . | . . . Garrison Access Hacks . | . . . Unauthorized Hacks 2 | . 2 . Terminals 2 | . 2 . Botnet 2 | . 2 . Fabricators . | . . . Repair Stations . | . . . Recycling Units . | . . . Scanalyzers . | . . . Garrison Access . | . . . Data Cores Recovered 1 | . 1 . Used . | . . . Hacking Detections 1 | . 1 . Full Trace Events . | . . . Feedback Events . | . . . Feedback Blocked . | . . . Robot Schematics Acquired . | . . . Robots Built . | . . . Authchips . | . . . Time . | . . . Total Robot Build Rating . | . . . Part Schematics Acquired . | . . . Parts Built . | . . . Authchips . | . . . Time . | . . . Total Part Build Rating . | . . . Part Studies Acquired . | . . . Parts Repaired . | . . . Time . | . . . Parts Recycled . | . . . Recycled Matter . | . . . Retrieved Matter . | . . . Retrieved Components . | . . . Parts Scanalyzed . | . . . Part Schematics Acquired . | . . . Parts Damaged . | . . . Bothacking | -11 -10 -10 ------------ Run | Yrd Mat Sub Used RIF Installer . | . . . Robots Hacked . | . . . Non-combat . | . . . Combat . | . . . Robot Hacks Applied . | . . . Relay Couplers Released . | . . . Fabnet Peak Effective % . | . . . Robots Rewired . | . . . Allies Hacked . | . . . Hacks Repelled . | . . . Allies | -11 -10 -10 -------- Run | Yrd Mat Sub Total Allies . | . . . Largest Group . | . . . Highest-Rated Group . | . . . Highest-Rated Ally . | . . . Total Orders . | . . . Ally Attacks . | . . . Total Damage . | . . . Kills . | . . . Allies Corrupted . | . . . Allies Melted . | . . . X0-1V1 Amusement Gains 16 | . 6 10 Good Acts 3 | . . 3 Bad Acts 5 | . . 5 Intel | -11 -10 -10 ------- Run | Yrd Mat Sub Active Infowar (turns) . | . . . Robot Analysis Total . | . . . Derelict Logs Recovered 1 | . . 1 Drone Launches . | . . . Drone Recoveries . | . . . Exploration | -11 -10 -10 ------------- Run | Yrd Mat Sub Turns Passed 1541 | 114 773 654 Spaces Moved 1030 | 79 492 459 Core 5 | 5 . . Treads . | . . . Legs 1025 | 74 492 459 Wheels . | . . . Hover . | . . . Flight . | . . . Fastest Speed 50 | 50 120 120 Average Speed 119 | 115 120 120 Slowest Speed 120 | 120 120 120 Overloaded Moves . | . . . Propulsion Burnouts . | . . . Robots Hopped . | . . . Potential Cave-ins . | . . . Cave-ins Triggered . | . . . Exploration Rate (%) 42 | 3 89 36 Regions Visited 2 Branch Regions 1 Pre-discovered Areas . | . . . Known Exits Taken . | . . . Unknown Exits Taken 2 | 1 1 . Scrap Searched . | . . . Spaces Dug . | . . . Terrain Destroyed 53 | . 53 . Melee . | . . . Projectile . | . . . AOE 53 | . 53 . Terrain Rammed . | . . . Walls Destroyed . | . . . Machines Disabled . | . . . Actions | -11 -10 -10 --------- Run | Yrd Mat Sub Total 1206 | 99 600 507 Wait 61 | 16 37 8 Move 1028 | 78 491 459 Hop . | . . . Pick Up 9 | . 7 2 Fast Attach 13 | 5 4 4 Attach 5 | . 1 4 Detach 3 | . 2 1 Swap 4 | . 4 . Drop 8 | . 7 1 Fire 75 | . 47 28 Melee . | . . . Ram . | . . . Kick . | . . . Crush . | . . . Escape Stasis . | . . . Rewire . | . . . Trap . | . . . Miscellaneous . | . . . Route ------- -11/Scrapyard -10/Materials (discovered 5 exits: [*Mat x3] / [*Min] / [*Sub]) -10/Subcaves History --------- Turn | Location | Event 5 | -11/Scrapyard | Discovered new exit (range 15) 115 | -11/Scrapyard | Entered Materials 161 | -10/Materials | Discovered new exit (range 16) 245 | -10/Materials | Discovered new exit (range 16) 303 | -10/Materials | Build established: Mutant 331 | -10/Materials | Discovered new exit (range 7) 492 | -10/Materials | Discovered new exit (range 15) 660 | -10/Materials | Discovered new exit (range 8) 885 | -10/Materials | Prayed at D.C.S.S. Altar Unit 888 | -10/Materials | Entered Subcaves 900 | -10/Subcaves | Weapon slot count permanently improved by X0-1V1 (+1) 909 | -10/Subcaves | X0-1V1 sent hostile S-10 Pest (x4) 1003 | -10/Subcaves | Core integrity fell below 50% 1109 | -10/Subcaves | Shifting Twisted Machinery released Piercing Trap 1118 | -10/Subcaves | Ranged accuracy permanently improved by X0-1V1 (+7%; -70 max core) 1121 | -10/Subcaves | Shifting Twisted Machinery released Sub. Beam Cannon 1206 | -10/Subcaves | Shifting Twisted Machinery released Sub. Monowheel 1208 | -10/Subcaves | Shifting Twisted Machinery released Sub. Machine Gun 1307 | -10/Subcaves | Melee accuracy permanently improved by X0-1V1 (+5%; -50 max core) 1328 | -10/Subcaves | X0-1V1 mutated your Weapon slot to Propulsion slot 1399 | -10/Subcaves | Lost 3 parts (2n1w) 1464 | -10/Subcaves | Learned 2 Materials zone layouts 1523 | -10/Subcaves | Core integrity fell below 20% 1542 | -10/Subcaves | Destroyed by RM-H94(R) with Subdweller Beam Cannon Last Messages --------------- off when the program checks. Keyboard commands such as panning the map may instead move Cogmind after an Alt-Tab. To prevent this possibility, consider tapping the Alt key again after returning to Cogmind in order to reset it. See the manual for more info. Dropped Broken Sub. Machine Gun. Acquired 7 matter. Acquired derelict log, extracted data. Data stored: Materials zone layouts (x2). Ion Engine destroyed. X0-1V1's Piety Tracker destroyed. X0-1V1 is mildly amused. X0-1V1: "Did you know you're leaking matter?" (-150 matter capacity) X0-1V1's Piety Tracker suddenly appears amidst shimmering waves of color. Flamer destroyed. Acquired X0-1V1's Piety Tracker. X0-1V1 chortles! Map ----- +----------------------------------------------------+ | ?????????????????????????????????????????????????? | | ?????????????????????????????????????????????????? | | ?????????????????????????????????????????????????? | | #######??????????????????????????????????????????? | | #" " ###????????????????????????????????????????? | | """" #????????????????????????????????????????? | | #????????????????????????????????????????? | | ### ###??????????????????????????????????????? | | # ## ##?????????????????????????????????????? | | # ## #?????????????????????????????????????? | | # ### #?????????????????????????????????????? | | ### # #???????????????????????????????###???? | | ## # ##???????????????????????????????# ##?# | | " ## #????????????????????????????????# ### | | ### #?????????????????????????????????# | | # #?# #?????????????????????????????????#""""" | | ######## #????????????????????????????????#"""""" | | #????# ##???????????????????????????????# """ | | ????## #???????????????????????????????## """ | | ???## ##????????????????????????????????## ""] | | ???# #??????????????????????????????????# | | ???## ##??????????????######?????????????# | | ????####" #####????????## ##??????????? | | ???????## #???###### #??????????? ### | | ????????# #?### ## # #??????????? #???? | | ??????### #### @ #??????????? ????? | | ??????# ##?# R #?????????? ?????? | | ??????# ####R ####### #?????????? ??????? | | ??????# ## #???##?## #?????????? ?????? | | ??????# ## ## #????????? ?????? | | ??????# #???????? ??????? | | ??????# ##???????? #??????? | | ??????### ### # ###????????# #??????? | | ????????# ####??## ###???????###### ##?????? | | ???????## ##???????####???????### #????## | | ???????# ##????##?????????????# ????## | | ???????# ##????## #????????????# #?????# | | ???????# ##????# ##??#####???# ##????# | | ???????## ##???# ##?# #???# ####?# | | ???????## ####? ##?# ##### ### | | ??????## ### ### [ | | ??????# #?# & | | ??????##### ### ## | | ????????### ### #### | | ????????# ### ##### | | ????????## ## ###?# ## | | ?????????###### ### #???## ## | | ??????????????#####?# ##### #????## ### | | ????????????????????## ##???# #????## #? | | ?????????????????????###????# ##?????# ## # | +----------------------------------------------------+ Best States ------------- Heat Dissipation 39 Energy Generation 14 Energy Capacity 250 Matter Stores 300 Matter Capacity 300 Sight Range 16 Terrain Scan Density 10 Propulsion Shielding 33 Evasion (%) 55 Offensive Hacking 10 Item Schematics ----------------- None Robot Schematics ------------------ None Fabricated ------------ Nothing Repaired ---------- Nothing Studied --------- None Alien Tech Used ----------------- None Achievements -------------- Chaos Is Inevitable Challenges ------------ None Game ------ Seed RemoteSalvagingThermoblaster Manual? 0 Play Time 00:29:39 Cumulative 41.2 hours Start 2026.06.29 @ 18:30:06 End 2026.06.29 @ 19:09:30 Sessions 1 Manual Loads 0 Difficulty Rogue Special Mode None Game No. 41 Rogue 41 Adventurer 0 Explorer 0 Win Type - Total 0 Types 0/0/0/0/0/0/0/0/0/0 Lore% 50 Gallery% 33 Achievement% 30 Wizard Run 0 Options --------- Layout 1 ASCII 0 Keyboard 1 Movement Numpad Keybinds 0 Fullscreen 1 Font 24/X11 Map View 50x35 Zoom Use 0% Tactical HUD 0 Map Filters NONE Filters NONE Steam 1 RUN: 6d712297-ffed-4024-ade7-360fdc7f6cd7